[Event "Late-Titled-Tuesday-Blitz-April-30-2024"]
[Site "Chess.com"]
[Date "2024.04.30"]
[Round "3"]
[White "Shuvalov"]
[Black "Nick12772"]
[Result "1-0"]
[WhiteElo "2620"]
[BlackElo "2428"]
[TimeControl "180+1"]
[EndTime "14:29:59 PDT"]
[Termination "Shuvalov won by resignation"]

1. d4 {[%clk 0:02:56.8]} 1... Nf6 {[%clk 0:03:00.4]} 2. c4 {[%clk 0:02:55.8]}
2... g6 {[%clk 0:03:00.9]} 3. Nc3 {[%clk 0:02:52.8]} 3... d5 {[%clk 0:03:00.9]}
4. Nf3 {[%clk 0:02:46]} 4... Bg7 {[%clk 0:03:01]} 5. Qb3 {[%clk 0:02:43.1]} 5...
c6 {[%clk 0:03:00.4]} 6. Bf4 {[%clk 0:02:38.4]} 6... O-O {[%clk 0:02:59.1]} 7.
e3 {[%clk 0:02:38.6]} 7... b6 {[%clk 0:02:55.3]} 8. cxd5 {[%clk 0:02:35.1]} 8...
cxd5 {[%clk 0:02:56.2]} 9. h3 {[%clk 0:02:33.3]} 9... Ba6 {[%clk 0:02:46.6]} 10.
Bxa6 {[%clk 0:02:32]} 10... Nxa6 {[%clk 0:02:47.5]} 11. O-O {[%clk 0:02:29.9]}
11... Nb8 {[%clk 0:02:39.9]} 12. Ne5 {[%clk 0:02:27]} 12... e6 {[%clk
0:02:34.1]} 13. Rfc1 {[%clk 0:02:23.5]} 13... Nfd7 {[%clk 0:02:34.1]} 14. Nf3
{[%clk 0:02:20.7]} 14... Nc6 {[%clk 0:02:25.2]} 15. Nb5 {[%clk 0:02:12.8]} 15...
Na5 {[%clk 0:02:23.5]} 16. Qd1 {[%clk 0:02:10.8]} 16... Nf6 {[%clk 0:01:55.4]}
17. b3 {[%clk 0:01:53.2]} 17... Ne4 {[%clk 0:01:53.5]} 18. Rc2 {[%clk
0:01:40.1]} 18... a6 {[%clk 0:01:40.4]} 19. Nc7 {[%clk 0:01:27.6]} 19... Ra7
{[%clk 0:01:40.5]} 20. Rac1 {[%clk 0:01:25.6]} 20... Qd7 {[%clk 0:01:07.5]} 21.
Qd3 {[%clk 0:01:23.7]} 21... Rc8 {[%clk 0:01:05.6]} 22. Nxa6 {[%clk 0:01:11.5]}
22... Rxc2 {[%clk 0:00:53.4]} 23. Rxc2 {[%clk 0:01:12.4]} 23... h6 {[%clk
0:00:37.7]} 24. Nc7 {[%clk 0:00:51.6]} 24... Kh7 {[%clk 0:00:24.7]} 25. Nb5
{[%clk 0:00:50.9]} 25... Rb7 {[%clk 0:00:21.9]} 26. a4 {[%clk 0:00:48.7]} 26...
Nc6 {[%clk 0:00:21]} 27. Rc1 {[%clk 0:00:40.6]} 27... Na5 {[%clk 0:00:16.7]} 28.
Qc2 {[%clk 0:00:37.1]} 28... Bf8 {[%clk 0:00:16.1]} 29. Ne5 {[%clk 0:00:35.1]}
29... Qe8 {[%clk 0:00:12.4]} 30. Nc6 {[%clk 0:00:28.7]} 30... Nxc6 {[%clk
0:00:11.2]} 31. Qxc6 {[%clk 0:00:29.6]} 31... Qxc6 {[%clk 0:00:11.6]} 32. Rxc6
{[%clk 0:00:30.5]} 32... Nd2 {[%clk 0:00:08.1]} 33. Bc7 {[%clk 0:00:20]} 33...
Nxb3 {[%clk 0:00:06.1]} 34. Rxb6 {[%clk 0:00:20.2]} 34... Rxb6 {[%clk
0:00:05.5]} 35. Bxb6 {[%clk 0:00:21.1]} 35... Bb4 {[%clk 0:00:04.7]} 36. Kf1
{[%clk 0:00:20.6]} 36... Ba5 {[%clk 0:00:05.2]} 37. Bxa5 {[%clk 0:00:20.5]}
37... Nxa5 {[%clk 0:00:06.1]} 38. Nd6 {[%clk 0:00:21]} 38... Kg8 {[%clk
0:00:05.3]} 39. Ke2 {[%clk 0:00:20.8]} 39... Kf8 {[%clk 0:00:05.3]} 40. Kd3
{[%clk 0:00:21.1]} 40... Ke7 {[%clk 0:00:04.8]} 41. Nb5 {[%clk 0:00:21.3]} 41...
Nc4 {[%clk 0:00:04.7]} 42. Nc3 {[%clk 0:00:20.1]} 42... Kd6 {[%clk 0:00:04.1]}
43. e4 {[%clk 0:00:20.5]} 43... Nb2+ {[%clk 0:00:01.8]} 44. Kc2 {[%clk
0:00:20.3]} 44... Nc4 {[%clk 0:00:02.3]} 45. exd5 {[%clk 0:00:20.2]} 45... exd5
{[%clk 0:00:03.2]} 46. Kb3 {[%clk 0:00:20.3]} 46... Na5+ {[%clk 0:00:02.9]} 47.
Kb4 {[%clk 0:00:20.4]} 47... Nc6+ {[%clk 0:00:03.8]} 48. Kb5 {[%clk 0:00:18.7]}
48... Nxd4+ {[%clk 0:00:04.5]} 49. Kb6 {[%clk 0:00:19.4]} 49... Nb3 {[%clk
0:00:04.4]} 50. a5 {[%clk 0:00:19]} 50... d4 {[%clk 0:00:05.1]} 51. Nb5+ {[%clk
0:00:18.9]} 51... Kd5 {[%clk 0:00:05]} 52. a6 {[%clk 0:00:19]} 52... Nc5 {[%clk
0:00:05.4]} 53. a7 {[%clk 0:00:18.1]} 53... Nd7+ {[%clk 0:00:05.4]} 54. Kc7
{[%clk 0:00:18.1]} 54... Nf8 {[%clk 0:00:04.2]} 55. a8=Q+ {[%clk 0:00:17.8]} 1-0

[Event "Late-Titled-Tuesday-Blitz-April-30-2024"]
[Site "Chess.com"]
[Date "2024.04.30"]
[Round "3"]
[White "youngdinousaur"]
[Black "Rytenko_V"]
[Result "0-1"]
[WhiteElo "2237"]
[BlackElo "2494"]
[TimeControl "180+1"]
[EndTime "14:30:03 PDT"]
[Termination "Rytenko_V won on time"]

1. d4 {[%clk 0:03:00.9]} 1... d5 {[%clk 0:02:59.2]} 2. Nf3 {[%clk 0:03:01]} 2...
e6 {[%clk 0:02:59.3]} 3. Bf4 {[%clk 0:03:01.5]} 3... c5 {[%clk 0:02:57.3]} 4. e3
{[%clk 0:03:01.8]} 4... Nf6 {[%clk 0:02:54.8]} 5. c3 {[%clk 0:03:01.6]} 5... Qb6
{[%clk 0:02:54.5]} 6. Qc2 {[%clk 0:02:58.5]} 6... Bd7 {[%clk 0:02:54.4]} 7. Nbd2
{[%clk 0:02:59]} 7... Be7 {[%clk 0:02:53.9]} 8. Ne5 {[%clk 0:02:55.5]} 8... Bb5
{[%clk 0:02:52.9]} 9. h3 {[%clk 0:02:41.5]} 9... Bxf1 {[%clk 0:02:40.7]} 10.
Kxf1 {[%clk 0:02:42.4]} 10... Nbd7 {[%clk 0:02:39]} 11. g4 {[%clk 0:02:41.4]}
11... Nxe5 {[%clk 0:02:30.7]} 12. Bxe5 {[%clk 0:02:40.6]} 12... Rc8 {[%clk
0:02:26.7]} 13. Kg2 {[%clk 0:02:39.3]} 13... O-O {[%clk 0:02:23.5]} 14. Qb3
{[%clk 0:02:37.5]} 14... Qc6 {[%clk 0:02:11.6]} 15. Bg3 {[%clk 0:02:21.3]} 15...
Nd7 {[%clk 0:02:07.6]} 16. Nf3 {[%clk 0:02:21.1]} 16... Kh8 {[%clk 0:02:02.1]}
17. Ne5 {[%clk 0:02:20.3]} 17... Nxe5 {[%clk 0:02:02.2]} 18. Bxe5 {[%clk
0:02:20.9]} 18... f6 {[%clk 0:02:02]} 19. Bg3 {[%clk 0:02:21.2]} 19... a6 {[%clk
0:01:54.2]} 20. f3 {[%clk 0:02:15.8]} 20... b5 {[%clk 0:01:53.6]} 21. a3 {[%clk
0:02:13]} 21... Bd6 {[%clk 0:01:39.3]} 22. Rhe1 {[%clk 0:02:00]} 22... Bxg3
{[%clk 0:01:38.8]} 23. Kxg3 {[%clk 0:02:00.2]} 23... Qd6+ {[%clk 0:01:39.5]} 24.
Kg2 {[%clk 0:01:59.9]} 24... e5 {[%clk 0:01:40.1]} 25. dxc5 {[%clk 0:01:48.3]}
25... Rxc5 {[%clk 0:01:36.9]} 26. Rad1 {[%clk 0:01:48.9]} 26... Qc6 {[%clk
0:01:35.7]} 27. e4 {[%clk 0:01:45.5]} 27... d4 {[%clk 0:01:31]} 28. cxd4 {[%clk
0:01:41.9]} 28... Rc2+ {[%clk 0:01:31.2]} 29. Kg3 {[%clk 0:01:42.3]} 29... exd4
{[%clk 0:01:24.8]} 30. Rxd4 {[%clk 0:01:37.4]} 30... Qc7+ {[%clk 0:01:22.8]} 31.
f4 {[%clk 0:01:37.6]} 31... g5 {[%clk 0:01:23.2]} 32. e5 {[%clk 0:01:11.5]}
32... fxe5 {[%clk 0:01:15.7]} 33. fxe5 {[%clk 0:01:04.2]} 33... Rff2 {[%clk
0:01:03.3]} 34. Qd5 {[%clk 0:00:37.5]} 34... Rg2+ {[%clk 0:00:39.4]} 35. Qxg2
{[%clk 0:00:36.8]} 35... Rxg2+ {[%clk 0:00:38.5]} 36. Kxg2 {[%clk 0:00:37.7]}
36... Qc2+ {[%clk 0:00:37.4]} 37. Kf3 {[%clk 0:00:16.9]} 37... Qxb2 {[%clk
0:00:25.2]} 38. Rde4 {[%clk 0:00:13.6]} 38... Kg7 {[%clk 0:00:16.2]} 39. e6
{[%clk 0:00:13.4]} 39... Kf8 {[%clk 0:00:16.2]} 40. e7+ {[%clk 0:00:13.5]} 40...
Ke8 {[%clk 0:00:16.8]} 41. R1e3 {[%clk 0:00:13.7]} 41... Qf6+ {[%clk 0:00:16.5]}
42. Kg3 {[%clk 0:00:12.8]} 42... Qd6+ {[%clk 0:00:16.6]} 43. Kg2 {[%clk
0:00:11.8]} 43... a5 {[%clk 0:00:17.1]} 44. Rf3 {[%clk 0:00:10.2]} 44... Qd2+
{[%clk 0:00:16.3]} 45. Rf2 {[%clk 0:00:09.2]} 45... Qd5 {[%clk 0:00:01.2]} 0-1

[Event "Late-Titled-Tuesday-Blitz-April-30-2024"]
[Site "Chess.com"]
[Date "2024.04.30"]
[Round "3"]
[White "Jahonas"]
[Black "HajiyevKanan"]
[Result "0-1"]
[WhiteElo "2397"]
[BlackElo "2614"]
[TimeControl "180+1"]
[EndTime "14:30:06 PDT"]
[Termination "HajiyevKanan won by resignation"]

1. d4 {[%clk 0:03:00.9]} 1... d5 {[%clk 0:03:00.2]} 2. c4 {[%clk 0:03:00.8]}
2... c6 {[%clk 0:03:00.8]} 3. cxd5 {[%clk 0:02:59.3]} 3... cxd5 {[%clk
0:03:01.7]} 4. Nc3 {[%clk 0:02:59.7]} 4... Nf6 {[%clk 0:03:02.6]} 5. Nf3 {[%clk
0:02:59.8]} 5... a6 {[%clk 0:03:03.5]} 6. Bf4 {[%clk 0:02:59.9]} 6... Nc6 {[%clk
0:03:04.4]} 7. e3 {[%clk 0:03:00.5]} 7... Bg4 {[%clk 0:03:04.9]} 8. Bd3 {[%clk
0:03:00.8]} 8... e6 {[%clk 0:03:05.4]} 9. h3 {[%clk 0:03:01.2]} 9... Bh5 {[%clk
0:03:05.2]} 10. O-O {[%clk 0:03:00.6]} 10... Be7 {[%clk 0:03:05.7]} 11. a3
{[%clk 0:03:00.7]} 11... O-O {[%clk 0:03:06]} 12. Qe2 {[%clk 0:02:57.4]} 12...
Rc8 {[%clk 0:03:06.2]} 13. Rac1 {[%clk 0:02:56.8]} 13... Na5 {[%clk 0:03:05.8]}
14. g4 {[%clk 0:02:55]} 14... Bg6 {[%clk 0:03:02]} 15. Bxg6 {[%clk 0:02:54.4]}
15... hxg6 {[%clk 0:03:02.7]} 16. Ne5 {[%clk 0:02:54.1]} 16... Nc4 {[%clk
0:02:59.9]} 17. Nxc4 {[%clk 0:02:51.3]} 17... Rxc4 {[%clk 0:03:00.8]} 18. Nb1
{[%clk 0:02:37.7]} 18... b5 {[%clk 0:02:57.9]} 19. Nd2 {[%clk 0:02:36.2]} 19...
Rc8 {[%clk 0:02:47.6]} 20. Qd3 {[%clk 0:02:32.6]} 20... Qb6 {[%clk 0:02:35.4]}
21. Kg2 {[%clk 0:02:28.6]} 21... a5 {[%clk 0:02:33.8]} 22. Bg3 {[%clk
0:02:21.4]} 22... b4 {[%clk 0:02:32.7]} 23. a4 {[%clk 0:02:12.4]} 23... Rc6
{[%clk 0:02:24.3]} 24. Nb3 {[%clk 0:02:07.3]} 24... Rfc8 {[%clk 0:02:21]} 25.
Rxc6 {[%clk 0:02:06.6]} 25... Rxc6 {[%clk 0:02:20.3]} 26. Rc1 {[%clk 0:02:06.4]}
26... Rxc1 {[%clk 0:02:14.5]} 27. Nxc1 {[%clk 0:02:06.3]} 27... Qc6 {[%clk
0:02:15.2]} 28. Qd1 {[%clk 0:02:05.7]} 28... Ne4 {[%clk 0:02:13.8]} 29. Nd3
{[%clk 0:01:58.6]} 29... Qc4 {[%clk 0:02:00.5]} 30. f3 {[%clk 0:01:52.6]} 30...
Nxg3 {[%clk 0:01:53.7]} 31. Kxg3 {[%clk 0:01:53.5]} 31... Bd6+ {[%clk 0:01:52]}
32. Kf2 {[%clk 0:01:42.2]} 32... b3 {[%clk 0:01:48.9]} 33. Nc1 {[%clk
0:01:35.7]} 33... Qxa4 {[%clk 0:01:20.7]} 34. Qxb3 {[%clk 0:01:34.7]} 34... Qa1
{[%clk 0:01:18.2]} 35. Qc2 {[%clk 0:01:31.6]} 35... Bb4 {[%clk 0:01:11.8]} 36.
h4 {[%clk 0:01:17.4]} 36... Be7 {[%clk 0:01:09.9]} 37. h5 {[%clk 0:01:16.8]}
37... gxh5 {[%clk 0:01:10.6]} 38. gxh5 {[%clk 0:01:16.8]} 38... Bh4+ {[%clk
0:01:11.4]} 39. Ke2 {[%clk 0:01:16.6]} 39... Bf6 {[%clk 0:01:10.1]} 40. Qc8+
{[%clk 0:01:15.7]} 40... Kh7 {[%clk 0:01:10]} 41. Qc2+ {[%clk 0:01:15.7]} 41...
Kh6 {[%clk 0:01:07.3]} 42. Kd1 {[%clk 0:00:46.6]} 42... Kxh5 {[%clk 0:01:05.8]}
43. Qh7+ {[%clk 0:00:41.5]} 43... Kg5 {[%clk 0:01:01.7]} 44. Qg8 {[%clk
0:00:31.8]} 44... Kg6 {[%clk 0:00:55.7]} 45. Qc8 {[%clk 0:00:28.7]} 45... Qxb2
{[%clk 0:00:53.2]} 46. Nd3 {[%clk 0:00:27.5]} 46... Qb1+ {[%clk 0:00:38.5]} 47.
Ke2 {[%clk 0:00:27.1]} 47... Kh7 {[%clk 0:00:32.6]} 48. Nf4 {[%clk 0:00:25.5]}
48... Qb2+ {[%clk 0:00:27.5]} 49. Kf1 {[%clk 0:00:22.9]} 49... g6 {[%clk
0:00:27.3]} 50. Qf8 {[%clk 0:00:17.3]} 50... Qb7 {[%clk 0:00:15]} 51. Kg2 {[%clk
0:00:14.5]} 51... Bg7 {[%clk 0:00:14.7]} 52. Qd8 {[%clk 0:00:13.9]} 52... a4
{[%clk 0:00:14.9]} 53. Qh4+ {[%clk 0:00:13.9]} 53... Kg8 {[%clk 0:00:15.1]} 54.
Qg4 {[%clk 0:00:14.3]} 54... a3 {[%clk 0:00:13]} 55. Nxe6 {[%clk 0:00:14.6]}
55... a2 {[%clk 0:00:11.2]} 56. Nc5 {[%clk 0:00:13.6]} 56... Qb2+ {[%clk
0:00:11.4]} 57. Kg3 {[%clk 0:00:13.4]} 57... a1=Q {[%clk 0:00:12.3]} 58. Qc8+
{[%clk 0:00:13.5]} 58... Kh7 {[%clk 0:00:11.7]} 59. Qh3+ {[%clk 0:00:13.7]}
59... Bh6 {[%clk 0:00:12.3]} 0-1

[Event "Late-Titled-Tuesday-Blitz-April-30-2024"]
[Site "Chess.com"]
[Date "2024.04.30"]
[Round "3"]
[White "Abund"]
[Black "NoSpaghettiForYou"]
[Result "1-0"]
[WhiteElo "2775"]
[BlackElo "2500"]
[TimeControl "180+1"]
[EndTime "14:30:08 PDT"]
[Termination "Abund won by resignation"]

1. e4 {[%clk 0:03:00.9]} 1... c5 {[%clk 0:02:59.9]} 2. Nf3 {[%clk 0:03:01.4]}
2... Nc6 {[%clk 0:03:00.3]} 3. Bb5 {[%clk 0:03:01.8]} 3... Nf6 {[%clk
0:03:00.5]} 4. Bxc6 {[%clk 0:03:00.5]} 4... dxc6 {[%clk 0:03:00.1]} 5. d3 {[%clk
0:02:58.2]} 5... Qc7 {[%clk 0:03:00.3]} 6. e5 {[%clk 0:02:54.4]} 6... Nd5 {[%clk
0:02:21.2]} 7. h3 {[%clk 0:02:53.2]} 7... g6 {[%clk 0:02:19.3]} 8. Qe2 {[%clk
0:02:51.3]} 8... Bg7 {[%clk 0:02:19]} 9. O-O {[%clk 0:02:48.7]} 9... h6 {[%clk
0:02:15.5]} 10. Nbd2 {[%clk 0:02:47.2]} 10... Be6 {[%clk 0:02:14.5]} 11. Ne4
{[%clk 0:02:34.3]} 11... b6 {[%clk 0:02:14.3]} 12. Re1 {[%clk 0:02:27.5]} 12...
Bxe5 {[%clk 0:01:56.4]} 13. Nxc5 {[%clk 0:02:11.7]} 13... Bh2+ {[%clk
0:01:32.9]} 14. Nxh2 {[%clk 0:02:11.7]} 14... bxc5 {[%clk 0:01:33.4]} 15. Nf3
{[%clk 0:02:03.5]} 15... g5 {[%clk 0:01:01]} 16. Ne5 {[%clk 0:01:58]} 16... Nf4
{[%clk 0:00:45.7]} 17. Bxf4 {[%clk 0:01:33.1]} 17... gxf4 {[%clk 0:00:45.7]} 18.
Qe4 {[%clk 0:01:29.3]} 18... Rg8 {[%clk 0:00:23.2]} 19. Qxf4 {[%clk 0:01:05.3]}
19... O-O-O {[%clk 0:00:22.7]} 20. Qh2 {[%clk 0:00:29.8]} 20... Bd5 {[%clk
0:00:18.6]} 21. f3 {[%clk 0:00:24.7]} 21... f6 {[%clk 0:00:18.6]} 22. Ng4 {[%clk
0:00:18.5]} 22... h5 {[%clk 0:00:16.5]} 23. Qxc7+ {[%clk 0:00:16.8]} 23... Kxc7
{[%clk 0:00:17]} 24. Nh2 {[%clk 0:00:15.7]} 24... e5 {[%clk 0:00:16.2]} 25. Kf2
{[%clk 0:00:13]} 25... a5 {[%clk 0:00:10.2]} 26. Nf1 {[%clk 0:00:09.6]} 26...
Rb8 {[%clk 0:00:09.9]} 27. b3 {[%clk 0:00:09.4]} 27... a4 {[%clk 0:00:10.4]} 28.
Ne3 {[%clk 0:00:09.6]} 28... Bf7 {[%clk 0:00:09]} 29. Rg1 {[%clk 0:00:09.3]}
29... Rb4 {[%clk 0:00:05.5]} 30. g4 {[%clk 0:00:09.3]} 30... h4 {[%clk
0:00:05.4]} 31. Rge1 {[%clk 0:00:09]} 31... Ra8 {[%clk 0:00:02.4]} 32. Ng2
{[%clk 0:00:08.6]} 32... Rh8 {[%clk 0:00:01.7]} 33. Re4 {[%clk 0:00:08.9]} 33...
Kd7 {[%clk 0:00:01.6]} 34. Ne3 {[%clk 0:00:07]} 34... a3 {[%clk 0:00:02.1]} 35.
Re1 {[%clk 0:00:06.6]} 35... Bd5 {[%clk 0:00:02.5]} 36. Rxb4 {[%clk 0:00:06.2]}
36... cxb4 {[%clk 0:00:02.9]} 37. Nf5 {[%clk 0:00:06.6]} 37... Be6 {[%clk
0:00:02.6]} 38. Ne3 {[%clk 0:00:06.8]} 38... Bf7 {[%clk 0:00:02.9]} 39. f4
{[%clk 0:00:06.5]} 39... exf4 {[%clk 0:00:02.8]} 40. Ng2 {[%clk 0:00:07]} 40...
Re8 {[%clk 0:00:03]} 41. Rxe8 {[%clk 0:00:04.2]} 41... Kxe8 {[%clk 0:00:03.9]}
42. Nxh4 {[%clk 0:00:04.7]} 42... Ke7 {[%clk 0:00:03.9]} 43. Ng2 {[%clk
0:00:05]} 43... f5 {[%clk 0:00:04.6]} 44. g5 {[%clk 0:00:04.3]} 44... Ke6 {[%clk
0:00:04.6]} 45. Nxf4+ {[%clk 0:00:04.8]} 45... Ke5 {[%clk 0:00:05.4]} 46. Ke3
{[%clk 0:00:05.5]} 46... c5 {[%clk 0:00:05.3]} 47. h4 {[%clk 0:00:06]} 47... Bg8
{[%clk 0:00:04.3]} 48. h5 {[%clk 0:00:06.1]} 48... Kd6 {[%clk 0:00:03.9]} 49. h6
{[%clk 0:00:06.6]} 49... Ke7 {[%clk 0:00:04.5]} 50. g6 {[%clk 0:00:07.2]} 50...
Kf6 {[%clk 0:00:05.1]} 51. h7 {[%clk 0:00:07.7]} 51... Bxh7 {[%clk 0:00:05.3]}
52. gxh7 {[%clk 0:00:08.5]} 1-0

[Event "Late-Titled-Tuesday-Blitz-April-30-2024"]
[Site "Chess.com"]
[Date "2024.04.30"]
[Round "3"]
[White "carokannlover213"]
[Black "amintabatabaei"]
[Result "0-1"]
[WhiteElo "2780"]
[BlackElo "3110"]
[TimeControl "180+1"]
[EndTime "14:30:09 PDT"]
[Termination "amintabatabaei won by checkmate"]

1. e4 {[%clk 0:03:00.9]} 1... c5 {[%clk 0:02:55.7]} 2. Nf3 {[%clk 0:03:01]} 2...
d6 {[%clk 0:02:56.3]} 3. d4 {[%clk 0:03:01.4]} 3... cxd4 {[%clk 0:02:57.2]} 4.
Nxd4 {[%clk 0:03:02.3]} 4... Nf6 {[%clk 0:02:58]} 5. f3 {[%clk 0:03:02.9]} 5...
Nc6 {[%clk 0:02:52.9]} 6. Nc3 {[%clk 0:03:03.2]} 6... e5 {[%clk 0:02:51.9]} 7.
Nb3 {[%clk 0:03:03.8]} 7... Be7 {[%clk 0:02:41.1]} 8. Be3 {[%clk 0:03:03.9]}
8... O-O {[%clk 0:02:41.5]} 9. Qd2 {[%clk 0:03:04.4]} 9... Be6 {[%clk
0:02:41.3]} 10. O-O-O {[%clk 0:03:02.5]} 10... a5 {[%clk 0:02:42]} 11. Bb5
{[%clk 0:03:02.5]} 11... Qb8 {[%clk 0:02:37.6]} 12. a3 {[%clk 0:02:54.9]} 12...
Na7 {[%clk 0:02:31.8]} 13. Bxa7 {[%clk 0:02:53.9]} 13... Qxa7 {[%clk 0:02:31]}
14. a4 {[%clk 0:02:50.3]} 14... Rfd8 {[%clk 0:02:27.1]} 15. Qe2 {[%clk
0:02:34.6]} 15... Rac8 {[%clk 0:02:24.6]} 16. Nd5 {[%clk 0:02:31.8]} 16... Nxd5
{[%clk 0:02:11.4]} 17. exd5 {[%clk 0:02:31.6]} 17... Bf5 {[%clk 0:02:12.1]} 18.
Bd3 {[%clk 0:02:07.3]} 18... Bd7 {[%clk 0:02:11.4]} 19. Kb1 {[%clk 0:02:06.2]}
19... Qb6 {[%clk 0:02:06.3]} 20. g4 {[%clk 0:01:59.7]} 20... Qb4 {[%clk
0:02:04]} 21. Bb5 {[%clk 0:01:35.9]} 21... Bxb5 {[%clk 0:02:04.1]} 22. Qxb5
{[%clk 0:01:36.2]} 22... Qxb5 {[%clk 0:02:04.8]} 23. axb5 {[%clk 0:01:36.9]}
23... a4 {[%clk 0:02:05.7]} 24. Nd2 {[%clk 0:01:29.1]} 24... Rc5 {[%clk
0:01:58.4]} 25. c4 {[%clk 0:01:22.5]} 25... Rdc8 {[%clk 0:01:59]} 26. h4 {[%clk
0:01:21.8]} 26... g6 {[%clk 0:01:54.5]} 27. g5 {[%clk 0:01:17]} 27... h6 {[%clk
0:01:51.5]} 28. gxh6 {[%clk 0:01:13.3]} 28... Kh7 {[%clk 0:01:51.4]} 29. h5
{[%clk 0:01:11.3]} 29... g5 {[%clk 0:01:51.3]} 30. Kc2 {[%clk 0:01:04.8]} 30...
Rxd5 {[%clk 0:01:42.8]} 31. Ra1 {[%clk 0:00:55.7]} 31... Rxb5 {[%clk 0:01:37.4]}
32. Rxa4 {[%clk 0:00:54]} 32... d5 {[%clk 0:01:38.1]} 33. Re1 {[%clk 0:00:34]}
33... f6 {[%clk 0:01:15.7]} 34. Kb1 {[%clk 0:00:15.8]} 34... dxc4 {[%clk
0:01:13.6]} 35. Nxc4 {[%clk 0:00:12.3]} 35... Kxh6 {[%clk 0:01:13.2]} 36. Ne3
{[%clk 0:00:11.8]} 36... Kxh5 {[%clk 0:01:13]} 37. Nf5 {[%clk 0:00:12.1]} 37...
Bf8 {[%clk 0:01:11.3]} 38. Rg4 {[%clk 0:00:06.1]} 38... Rc3 {[%clk 0:01:02.1]}
39. Nh4 {[%clk 0:00:03.1]} 39... Rxf3 {[%clk 0:00:27.8]} 40. Nxf3 {[%clk
0:00:01.7]} 40... Kxg4 {[%clk 0:00:28.1]} 41. Nd2 {[%clk 0:00:02.2]} 41... Kf5
{[%clk 0:00:25.3]} 42. Ne4 {[%clk 0:00:01.9]} 42... Kg6 {[%clk 0:00:25.3]} 43.
Ng3 {[%clk 0:00:01.8]} 43... f5 {[%clk 0:00:25.2]} 44. Ne2 {[%clk 0:00:02]}
44... e4 {[%clk 0:00:24.9]} 45. Nc1 {[%clk 0:00:02.9]} 45... Bg7 {[%clk
0:00:24.9]} 46. b3 {[%clk 0:00:02.7]} 46... g4 {[%clk 0:00:25]} 47. Rd1 {[%clk
0:00:03]} 47... g3 {[%clk 0:00:24.3]} 48. Rd6+ {[%clk 0:00:03.3]} 48... Kg5
{[%clk 0:00:23.8]} 49. Rd7 {[%clk 0:00:04.1]} 49... Bf6 {[%clk 0:00:22.9]} 50.
Rd2 {[%clk 0:00:04.2]} 50... f4 {[%clk 0:00:22.8]} 51. Ne2 {[%clk 0:00:04.7]}
51... g2 {[%clk 0:00:22.3]} 52. Ng1 {[%clk 0:00:04.2]} 52... f3 {[%clk 0:00:21]}
53. b4 {[%clk 0:00:05.1]} 53... Rxb4+ {[%clk 0:00:21.2]} 54. Ka2 {[%clk
0:00:05.7]} 54... Rb2+ {[%clk 0:00:21.4]} 55. Ka3 {[%clk 0:00:05.6]} 55... Rxd2
{[%clk 0:00:21.5]} 56. Nh3+ {[%clk 0:00:06.5]} 56... Kf5 {[%clk 0:00:21.7]} 57.
Kb3 {[%clk 0:00:07]} 57... e3 {[%clk 0:00:21.3]} 58. Nf2 {[%clk 0:00:06.8]}
58... exf2 {[%clk 0:00:21.4]} 59. Ka4 {[%clk 0:00:07.7]} 59... f1=Q {[%clk
0:00:21.2]} 60. Kb3 {[%clk 0:00:08.6]} 60... Qb1+ {[%clk 0:00:21.5]} 61. Ka3
{[%clk 0:00:09]} 61... Ra2# {[%clk 0:00:20.9]} 0-1

[Event "Late-Titled-Tuesday-Blitz-April-30-2024"]
[Site "Chess.com"]
[Date "2024.04.30"]
[Round "3"]
[White "Sanan_Sjugirov"]
[Black "attack2mateU"]
[Result "1-0"]
[WhiteElo "3010"]
[BlackElo "2705"]
[TimeControl "180+1"]
[EndTime "14:30:10 PDT"]
[Termination "Sanan_Sjugirov won by resignation"]

1. e4 {[%clk 0:03:00.9]} 1... c5 {[%clk 0:02:57.3]} 2. Nc3 {[%clk 0:03:00.6]}
2... d6 {[%clk 0:02:57.7]} 3. Nge2 {[%clk 0:02:59.6]} 3... Nf6 {[%clk
0:02:57.3]} 4. g3 {[%clk 0:02:59.4]} 4... g6 {[%clk 0:02:57.7]} 5. Bg2 {[%clk
0:02:59.9]} 5... Bg7 {[%clk 0:02:58.3]} 6. O-O {[%clk 0:03:00.4]} 6... Nc6
{[%clk 0:02:58.5]} 7. d3 {[%clk 0:03:00.3]} 7... O-O {[%clk 0:02:57.9]} 8. h3
{[%clk 0:03:00.1]} 8... Rb8 {[%clk 0:02:57.2]} 9. a4 {[%clk 0:02:59.4]} 9... a6
{[%clk 0:02:57]} 10. f4 {[%clk 0:02:59.8]} 10... Nd7 {[%clk 0:02:55.4]} 11. g4
{[%clk 0:02:51.5]} 11... e6 {[%clk 0:02:53.3]} 12. f5 {[%clk 0:02:34.1]} 12...
b5 {[%clk 0:02:22.2]} 13. axb5 {[%clk 0:02:33.8]} 13... axb5 {[%clk 0:02:23.1]}
14. Ng3 {[%clk 0:02:33.3]} 14... Qh4 {[%clk 0:02:12.7]} 15. Nce2 {[%clk
0:02:30.4]} 15... Be5 {[%clk 0:02:11.9]} 16. Bf4 {[%clk 0:02:23.2]} 16... Bxf4
{[%clk 0:00:59.2]} 17. Rxf4 {[%clk 0:02:24.1]} 17... g5 {[%clk 0:00:35.8]} 18.
Rf2 {[%clk 0:02:21.2]} 18... Nf6 {[%clk 0:00:36.3]} 19. Qd2 {[%clk 0:01:50.6]}
19... Ne5 {[%clk 0:00:31.6]} 20. fxe6 {[%clk 0:01:37.9]} 20... fxe6 {[%clk
0:00:31.1]} 21. Raf1 {[%clk 0:01:37.8]} 21... Ned7 {[%clk 0:00:22.7]} 22. d4
{[%clk 0:01:08.9]} 22... Bb7 {[%clk 0:00:18.8]} 23. dxc5 {[%clk 0:01:09.5]}
23... dxc5 {[%clk 0:00:17]} 24. Qd6 {[%clk 0:01:10]} 24... Rbe8 {[%clk
0:00:13.1]} 25. e5 {[%clk 0:01:05.4]} 25... Bxg2 {[%clk 0:00:12.7]} 26. Kxg2
{[%clk 0:01:06.3]} 26... Nd5 {[%clk 0:00:07]} 27. Qxd7 {[%clk 0:00:58]} 27...
Ne3+ {[%clk 0:00:07.2]} 28. Kg1 {[%clk 0:00:58.6]} 28... Nxf1 {[%clk 0:00:06.4]}
29. Rxf1 {[%clk 0:00:47.7]} 29... Qxh3 {[%clk 0:00:05.7]} 30. Rxf8+ {[%clk
0:00:46]} 30... Kxf8 {[%clk 0:00:06.6]} 31. Qd6+ {[%clk 0:00:29.4]} 31... Re7
{[%clk 0:00:07]} 32. Qd8+ {[%clk 0:00:14.7]} 32... Kf7 {[%clk 0:00:06.3]} 33.
Qh8 {[%clk 0:00:14.9]} 33... Qxg4 {[%clk 0:00:03.4]} 34. Qxh7+ {[%clk
0:00:15.1]} 34... Ke8 {[%clk 0:00:04.3]} 35. Qd3 {[%clk 0:00:14]} 35... c4
{[%clk 0:00:04.1]} 36. Qd6 {[%clk 0:00:12.2]} 36... Rd7 {[%clk 0:00:03.3]} 37.
Qb8+ {[%clk 0:00:12.1]} 37... Kf7 {[%clk 0:00:03.2]} 38. Qh8 {[%clk 0:00:10.3]}
38... Rd1+ {[%clk 0:00:02.3]} 39. Kg2 {[%clk 0:00:09.6]} 39... Ke7 {[%clk
0:00:01.9]} 40. Qg7+ {[%clk 0:00:07.8]} 40... Kd8 {[%clk 0:00:02.4]} 41. Qf8+
{[%clk 0:00:08.3]} 41... Kd7 {[%clk 0:00:02.7]} 42. Qf7+ {[%clk 0:00:08.6]}
42... Kc6 {[%clk 0:00:01.5]} 43. Qe8+ {[%clk 0:00:09.1]} 43... Kc7 {[%clk
0:00:01.5]} 44. Qe7+ {[%clk 0:00:09]} 44... Rd7 {[%clk 0:00:01.8]} 45. Qc5+
{[%clk 0:00:09.1]} 45... Kd8 {[%clk 0:00:02.6]} 46. Qxb5 {[%clk 0:00:09.2]}
46... Ke7 {[%clk 0:00:01.8]} 47. Qc5+ {[%clk 0:00:09.3]} 47... Ke8 {[%clk
0:00:02]} 48. Qc8+ {[%clk 0:00:09.4]} 48... Ke7 {[%clk 0:00:02.1]} 49. Qc5+
{[%clk 0:00:10]} 49... Ke8 {[%clk 0:00:02.6]} 50. Qc6 {[%clk 0:00:10.6]} 50...
Ke7 {[%clk 0:00:02.9]} 51. b3 {[%clk 0:00:10.2]} 51... cxb3 {[%clk 0:00:03.8]}
52. cxb3 {[%clk 0:00:10.9]} 52... Qb4 {[%clk 0:00:03.7]} 53. Qf3 {[%clk
0:00:10.6]} 53... Rb7 {[%clk 0:00:03.1]} 54. Qf6+ {[%clk 0:00:10.5]} 54... Kd7
{[%clk 0:00:03.8]} 55. Qf7+ {[%clk 0:00:10.6]} 55... Qe7 {[%clk 0:00:04.5]} 56.
Qf3 {[%clk 0:00:10.8]} 56... Qb4 {[%clk 0:00:02.1]} 57. Ne4 {[%clk 0:00:10.8]}
57... Kc8 {[%clk 0:00:01.6]} 58. Nd6+ {[%clk 0:00:11]} 1-0